[Event "Titled Tuesday Blitz December 20 Early 2022"]
[White "TERMINATOR_PC"]
[Black "MAGMAchess02"]
[WhiteElo "2620"]
[BlackElo "2316"]
[Result "1-0"]
[Round "01"]
[TimeControl "180+2"]
[Date "2022.12.20"]
[WhiteClock "0:00:29"]
[BlackClock "0:00:03"]

1. e4 {[%clk 0:02:41]}  c5 {[%clk 0:02:59]} 2. Nf3 {[%clk 0:02:11]}  Nc6 {[%clk 0:02:58]} 3. d4 {[%clk 0:02:07]}  cxd4 {[%clk 0:02:59]} 4. Nxd4 {[%clk 0:02:01]}  e5 {[%clk 0:02:59]} 5. Nb5 {[%clk 0:02:01]}  d6 {[%clk 0:02:58]} 6. c4 {[%clk 0:01:58]}  Be7 {[%clk 0:02:58]} 7. Bd3 {[%clk 0:01:57]}  Nf6 {[%clk 0:02:56]} 8. O-O {[%clk 0:01:56]}  O-O {[%clk 0:02:54]} 9. N1c3 {[%clk 0:01:54]}  a6 {[%clk 0:02:54]} 10. Na3 {[%clk 0:01:54]}  Nd7 {[%clk 0:02:51]} 11. Be2 {[%clk 0:01:49]}  Nc5 {[%clk 0:02:32]} 12. Nc2 {[%clk 0:01:46]}  Ne6 {[%clk 0:02:23]} 13. Be3 {[%clk 0:01:43]}  Bg5 {[%clk 0:02:10]} 14. Bxg5 {[%clk 0:01:42]}  Qxg5 {[%clk 0:02:11]} 15. Kh1 {[%clk 0:01:35]}  Ned4 {[%clk 0:02:05]} 16. Nxd4 {[%clk 0:01:30]}  Nxd4 {[%clk 0:02:05]} 17. f4 {[%clk 0:01:29]}  Qh6 {[%clk 0:01:58]} 18. f5 {[%clk 0:01:27]}  f6 {[%clk 0:01:50]} 19. Nd5 {[%clk 0:01:25]}  Bd7 {[%clk 0:01:45]} 20. Rc1 {[%clk 0:01:23]}  Bc6 {[%clk 0:01:44]} 21. Ne7+ {[%clk 0:01:11]}  Kf7 {[%clk 0:01:39]} 22. Nxc6 {[%clk 0:01:05]}  bxc6 {[%clk 0:01:39]} 23. Rc3 {[%clk 0:00:58]}  c5 {[%clk 0:01:38]} 24. Rh3 {[%clk 0:00:52]}  Qg5 {[%clk 0:01:23]} 25. Qd3 {[%clk 0:00:36]}  Nxe2 {[%clk 0:00:18]} 26. Qxe2 {[%clk 0:00:33]}  Rab8 {[%clk 0:00:19]} 27. b3 {[%clk 0:00:32]}  g6 {[%clk 0:00:07]} 28. Rxh7+ {[%clk 0:00:31]}  Kg8 {[%clk 0:00:07]} 29. Rh3 {[%clk 0:00:31]}  Rf7 {[%clk 0:00:06]} 30. Rg3 {[%clk 0:00:30]}  Qh5 {[%clk 0:00:03]} 31. Qxh5 {[%clk 0:00:29]} 1-0


[Site "https://www.chess.com"]

[Event "Titled Tuesday Blitz December 20 Early 2022"]
[White "The_Machine04"]
[Black "Ilia_Jude"]
[WhiteElo "2652"]
[BlackElo "2372"]
[Result "1-0"]
[Round "01"]
[TimeControl "180+2"]
[Date "2022.12.20"]
[WhiteClock "0:00:17"]
[BlackClock "0:00:02"]

1. d4 {[%clk 0:02:58]}  Nf6 {[%clk 0:03:00]} 2. Bg5 {[%clk 0:02:56]}  g6 {[%clk 0:02:59]} 3. Bxf6 {[%clk 0:02:55]}  exf6 {[%clk 0:03:00]} 4. g3 {[%clk 0:02:55]}  Bg7 {[%clk 0:03:00]} 5. Bg2 {[%clk 0:02:41]}  O-O {[%clk 0:03:01]} 6. e3 {[%clk 0:02:41]}  d5 {[%clk 0:03:00]} 7. Ne2 {[%clk 0:02:41]}  Be6 {[%clk 0:02:59]} 8. O-O {[%clk 0:02:41]}  c6 {[%clk 0:02:57]} 9. b3 {[%clk 0:02:40]}  Nd7 {[%clk 0:02:56]} 10. Nd2 {[%clk 0:02:38]}  Rc8 {[%clk 0:02:54]} 11. c4 {[%clk 0:02:37]}  Qe7 {[%clk 0:02:47]} 12. Nf4 {[%clk 0:02:29]}  dxc4 {[%clk 0:02:41]} 13. bxc4 {[%clk 0:02:25]}  Rfd8 {[%clk 0:02:31]} 14. d5 {[%clk 0:02:09]}  cxd5 {[%clk 0:02:27]} 15. cxd5 {[%clk 0:02:10]}  Bf5 {[%clk 0:01:39]} 16. e4 {[%clk 0:02:09]}  g5 {[%clk 0:01:39]} 17. exf5 {[%clk 0:01:53]}  gxf4 {[%clk 0:01:38]} 18. Re1 {[%clk 0:01:47]}  Qf8 {[%clk 0:01:25]} 19. Ne4 {[%clk 0:01:32]}  fxg3 {[%clk 0:01:22]} 20. hxg3 {[%clk 0:01:32]}  Nc5 {[%clk 0:01:11]} 21. Rb1 {[%clk 0:00:55]}  Nxe4 {[%clk 0:01:08]} 22. Rxe4 {[%clk 0:00:56]}  b6 {[%clk 0:01:03]} 23. Qh5 {[%clk 0:00:49]}  h6 {[%clk 0:00:36]} 24. Rg4 {[%clk 0:00:46]}  Kh7 {[%clk 0:00:35]} 25. Ra4 {[%clk 0:00:36]}  Rc7 {[%clk 0:00:29]} 26. Rd1 {[%clk 0:00:34]}  Qd6 {[%clk 0:00:25]} 27. Re4 {[%clk 0:00:28]}  Re7 {[%clk 0:00:24]} 28. Rxe7 {[%clk 0:00:23]}  Qxe7 {[%clk 0:00:25]} 29. d6 {[%clk 0:00:23]}  Rxd6 {[%clk 0:00:22]} 30. Rxd6 {[%clk 0:00:24]}  Qxd6 {[%clk 0:00:23]} 31. Qxf7 {[%clk 0:00:25]}  Qf8 {[%clk 0:00:05]} 32. Qxa7 {[%clk 0:00:23]}  Qd8 {[%clk 0:00:04]} 33. Qf7 {[%clk 0:00:20]}  Qf8 {[%clk 0:00:04]} 34. Qg6+ {[%clk 0:00:19]}  Kh8 {[%clk 0:00:04]} 35. Bd5 {[%clk 0:00:19]}  Qe7 {[%clk 0:00:02]} 36. Kg2 {[%clk 0:00:18]}  Qf8 {[%clk 0:00:02]} 37. Be6 {[%clk 0:00:17]}  Qe7 {[%clk 0:00:02]} 38. Qg4 {[%clk 0:00:17]}  Qf8 {[%clk 0:00:02]} 39. Qe4 {[%clk 0:00:17]}  Qe7 {[%clk 0:00:02]} 40. Qa8+ {[%clk 0:00:16]}  Kh7 {[%clk 0:00:03]} 41. Qc6 {[%clk 0:00:16]}  Kh8 {[%clk 0:00:03]} 42. Qxb6 {[%clk 0:00:15]}  Bf8 {[%clk 0:00:03]} 43. Qc6 {[%clk 0:00:15]}  Kg7 {[%clk 0:00:04]} 44. a4 {[%clk 0:00:15]}  Qd6 {[%clk 0:00:04]} 45. Qe4 {[%clk 0:00:15]}  Qe5 {[%clk 0:00:04]} 46. Qg4+ {[%clk 0:00:16]}  Kh8 {[%clk 0:00:02]} 47. Qg8# {[%clk 0:00:17]} 1-0


[Site "https://www.chess.com"]

[Event "Titled Tuesday Blitz December 20 Early 2022"]
[White "TheoSlade"]
[Black "NowInChess"]
[WhiteElo "2571"]
[BlackElo "2177"]
[Result "1-0"]
[Round "01"]
[TimeControl "180+2"]
[Date "2022.12.20"]
[WhiteClock "0:00:33"]
[BlackClock "0:00:02"]

1. d4 {[%clk 0:03:00]}  Nf6 {[%clk 0:02:58]} 2. c4 {[%clk 0:03:00]}  c5 {[%clk 0:02:57]} 3. d5 {[%clk 0:03:00]}  b5 {[%clk 0:02:58]} 4. cxb5 {[%clk 0:03:01]}  a6 {[%clk 0:02:57]} 5. bxa6 {[%clk 0:03:02]}  g6 {[%clk 0:02:52]} 6. Nc3 {[%clk 0:03:02]}  Bg7 {[%clk 0:02:52]} 7. e4 {[%clk 0:03:02]}  O-O {[%clk 0:02:52]} 8. Nf3 {[%clk 0:03:01]}  Qa5 {[%clk 0:02:51]} 9. Bd2 {[%clk 0:03:00]}  Bxa6 {[%clk 0:02:49]} 10. Be2 {[%clk 0:03:00]}  Bxe2 {[%clk 0:02:47]} 11. Qxe2 {[%clk 0:03:01]}  Qa6 {[%clk 0:02:47]} 12. Qxa6 {[%clk 0:03:00]}  Nxa6 {[%clk 0:02:47]} 13. O-O {[%clk 0:02:55]}  e6 {[%clk 0:02:37]} 14. dxe6 {[%clk 0:02:50]}  fxe6 {[%clk 0:02:36]} 15. Bg5 {[%clk 0:02:38]}  Rfb8 {[%clk 0:02:26]} 16. Rfd1 {[%clk 0:02:21]}  Ra7 {[%clk 0:02:04]} 17. Rd2 {[%clk 0:02:09]}  Rab7 {[%clk 0:01:22]} 18. Rd6 {[%clk 0:01:56]}  Rb6 {[%clk 0:01:16]} 19. Rad1 {[%clk 0:01:47]}  R8b7 {[%clk 0:01:00]} 20. Na4 {[%clk 0:01:32]}  Rxd6 {[%clk 0:00:50]} 21. Rxd6 {[%clk 0:01:33]}  Nb8 {[%clk 0:00:22]} 22. Bxf6 {[%clk 0:01:30]}  Bxf6 {[%clk 0:00:21]} 23. e5 {[%clk 0:01:23]}  Be7 {[%clk 0:00:18]} 24. Rb6 {[%clk 0:01:23]}  Rxb6 {[%clk 0:00:17]} 25. Nxb6 {[%clk 0:01:24]}  Kf7 {[%clk 0:00:16]} 26. Kf1 {[%clk 0:01:21]}  Ke8 {[%clk 0:00:17]} 27. Ke2 {[%clk 0:01:20]}  Nc6 {[%clk 0:00:17]} 28. a3 {[%clk 0:01:12]}  Bf8 {[%clk 0:00:17]} 29. Kd3 {[%clk 0:01:11]}  Bg7 {[%clk 0:00:16]} 30. Ke4 {[%clk 0:01:10]}  Kd8 {[%clk 0:00:16]} 31. Nc4 {[%clk 0:00:53]}  Kc7 {[%clk 0:00:16]} 32. Ng5 {[%clk 0:00:48]}  h6 {[%clk 0:00:14]} 33. Nf7 {[%clk 0:00:49]}  Nd4 {[%clk 0:00:10]} 34. Nfd6 {[%clk 0:00:45]}  Nc6 {[%clk 0:00:09]} 35. Nb5+ {[%clk 0:00:45]}  Kb7 {[%clk 0:00:08]} 36. f4 {[%clk 0:00:45]}  Ka6 {[%clk 0:00:06]} 37. Nbd6 {[%clk 0:00:37]}  Nd4 {[%clk 0:00:04]} 38. Ne8 {[%clk 0:00:33]}  Bf8 {[%clk 0:00:03]} 39. Nf6 {[%clk 0:00:34]}  Bg7 {[%clk 0:00:03]} 40. Nxd7 {[%clk 0:00:34]}  Ne2 {[%clk 0:00:03]} 41. Nxc5+ {[%clk 0:00:31]}  Kb5 {[%clk 0:00:03]} 42. Nxe6 {[%clk 0:00:32]}  Kxc4 {[%clk 0:00:01]} 43. Nxg7 {[%clk 0:00:32]}  Kb3 {[%clk 0:00:02]} 44. e6 {[%clk 0:00:33]} 1-0


[Site "https://www.chess.com"]

[Event "Titled Tuesday Blitz December 20 Early 2022"]
[White "Tobias_Koelle"]
[Black "newyorkmouse"]
[WhiteElo "2779"]
[BlackElo "2457"]
[Result "1-0"]
[Round "01"]
[TimeControl "180+2"]
[Date "2022.12.20"]
[WhiteClock "0:02:19"]
[BlackClock "0:00:21"]

1. e4 {[%clk 0:02:58]}  c5 {[%clk 0:02:59]} 2. Nf3 {[%clk 0:02:57]}  d6 {[%clk 0:02:59]} 3. d4 {[%clk 0:02:57]}  cxd4 {[%clk 0:03:00]} 4. Nxd4 {[%clk 0:02:58]}  Nf6 {[%clk 0:03:00]} 5. Nc3 {[%clk 0:02:58]}  a6 {[%clk 0:03:01]} 6. f3 {[%clk 0:02:59]}  e5 {[%clk 0:03:00]} 7. Nb3 {[%clk 0:02:59]}  Be6 {[%clk 0:03:01]} 8. Be3 {[%clk 0:02:59]}  h5 {[%clk 0:03:01]} 9. Nd5 {[%clk 0:02:58]}  Nxd5 {[%clk 0:02:57]} 10. exd5 {[%clk 0:02:59]}  Bf5 {[%clk 0:02:57]} 11. Bd3 {[%clk 0:02:55]}  Bxd3 {[%clk 0:02:57]} 12. Qxd3 {[%clk 0:02:56]}  Nd7 {[%clk 0:02:58]} 13. O-O {[%clk 0:02:55]}  Rc8 {[%clk 0:02:58]} 14. c4 {[%clk 0:02:55]}  Be7 {[%clk 0:02:56]} 15. Rfd1 {[%clk 0:02:49]}  h4 {[%clk 0:02:51]} 16. h3 {[%clk 0:02:47]}  Bg5 {[%clk 0:02:49]} 17. Bf2 {[%clk 0:02:47]}  Qc7 {[%clk 0:02:29]} 18. c5 {[%clk 0:02:42]}  dxc5 {[%clk 0:02:28]} 19. d6 {[%clk 0:02:43]}  Qd8 {[%clk 0:02:25]} 20. Qd5 {[%clk 0:02:40]}  O-O {[%clk 0:02:11]} 21. Nd2 {[%clk 0:02:34]}  Bxd2 {[%clk 0:01:45]} 22. Rxd2 {[%clk 0:02:34]}  Rc6 {[%clk 0:01:44]} 23. Rad1 {[%clk 0:02:32]}  Re8 {[%clk 0:01:44]} 24. Qe4 {[%clk 0:02:30]}  Re6 {[%clk 0:01:41]} 25. Bxh4 {[%clk 0:02:29]}  Nf6 {[%clk 0:01:41]} 26. Bxf6 {[%clk 0:02:25]}  Qxf6 {[%clk 0:01:26]} 27. d7 {[%clk 0:02:26]}  Qd8 {[%clk 0:01:18]} 28. b3 {[%clk 0:02:26]}  Kf8 {[%clk 0:01:16]} 29. Rd5 {[%clk 0:02:23]}  f6 {[%clk 0:01:10]} 30. Qh7 {[%clk 0:02:22]}  Kf7 {[%clk 0:01:04]} 31. h4 {[%clk 0:02:22]}  Rc7 {[%clk 0:00:54]} 32. h5 {[%clk 0:02:22]}  Re7 {[%clk 0:00:55]} 33. h6 {[%clk 0:02:21]}  Ke6 {[%clk 0:00:46]} 34. hxg7 {[%clk 0:02:20]}  Rcxd7 {[%clk 0:00:21]} 35. g8=Q+ {[%clk 0:02:19]} 1-0


[Site "https://www.chess.com"]

[Event "Titled Tuesday Blitz December 20 Early 2022"]
[White "Triumphmate"]
[Black "wonderfultime"]
[WhiteElo "2503"]
[BlackElo "3066"]
[Result "0-1"]
[Round "01"]
[TimeControl "180+2"]
[Date "2022.12.20"]
[WhiteClock "0:00:11"]
[BlackClock "0:00:11"]

1. e4 {[%clk 0:01:58]}  c5 {[%clk 0:02:51]} 2. Nf3 {[%clk 0:01:59]}  Nf6 {[%clk 0:02:51]} 3. Nc3 {[%clk 0:01:57]}  d5 {[%clk 0:02:46]} 4. exd5 {[%clk 0:01:56]}  Nxd5 {[%clk 0:02:40]} 5. Bc4 {[%clk 0:01:50]}  Nb6 {[%clk 0:02:40]} 6. Bb5+ {[%clk 0:01:39]}  Bd7 {[%clk 0:02:40]} 7. Bxd7+ {[%clk 0:01:38]}  Qxd7 {[%clk 0:02:39]} 8. d3 {[%clk 0:01:36]}  Nc6 {[%clk 0:02:39]} 9. Be3 {[%clk 0:01:37]}  e6 {[%clk 0:02:39]} 10. Ne4 {[%clk 0:01:35]}  Nd4 {[%clk 0:01:58]} 11. O-O {[%clk 0:01:34]}  Rc8 {[%clk 0:01:51]} 12. c3 {[%clk 0:01:20]}  Nf5 {[%clk 0:01:47]} 13. Ng3 {[%clk 0:01:12]}  Nxg3 {[%clk 0:01:07]} 14. hxg3 {[%clk 0:01:11]}  Bd6 {[%clk 0:01:07]} 15. Qe2 {[%clk 0:01:07]}  O-O {[%clk 0:01:07]} 16. Rad1 {[%clk 0:01:06]}  h6 {[%clk 0:01:06]} 17. Nd2 {[%clk 0:00:56]}  Nd5 {[%clk 0:01:05]} 18. Ne4 {[%clk 0:00:51]}  Be7 {[%clk 0:01:05]} 19. d4 {[%clk 0:00:47]}  c4 {[%clk 0:01:03]} 20. Bc1 {[%clk 0:00:43]}  b5 {[%clk 0:00:52]} 21. g4 {[%clk 0:00:43]}  f5 {[%clk 0:00:48]} 22. gxf5 {[%clk 0:00:40]}  exf5 {[%clk 0:00:49]} 23. Nd2 {[%clk 0:00:39]}  Nf4 {[%clk 0:00:41]} 24. Qf3 {[%clk 0:00:29]}  Bd6 {[%clk 0:00:36]} 25. Nxc4 {[%clk 0:00:16]}  Ne6 {[%clk 0:00:15]} 26. Nxd6 {[%clk 0:00:16]}  Qxd6 {[%clk 0:00:16]} 27. d5 {[%clk 0:00:16]}  Nc5 {[%clk 0:00:16]} 28. Bf4 {[%clk 0:00:17]}  Qd7 {[%clk 0:00:16]} 29. d6 {[%clk 0:00:17]}  Ne4 {[%clk 0:00:17]} 30. Rfe1 {[%clk 0:00:17]}  Rce8 {[%clk 0:00:16]} 31. b3 {[%clk 0:00:16]}  Rf6 {[%clk 0:00:15]} 32. c4 {[%clk 0:00:16]}  bxc4 {[%clk 0:00:15]} 33. bxc4 {[%clk 0:00:17]}  Rfe6 {[%clk 0:00:16]} 34. Re3 {[%clk 0:00:14]}  g5 {[%clk 0:00:16]} 35. Bh2 {[%clk 0:00:13]}  f4 {[%clk 0:00:16]} 36. Red3 {[%clk 0:00:12]}  Nc5 {[%clk 0:00:13]} 37. Qd5 {[%clk 0:00:09]}  Nxd3 {[%clk 0:00:13]} 38. Rxd3 {[%clk 0:00:10]}  Qxd6 {[%clk 0:00:11]} 39. Bxf4 {[%clk 0:00:05]}  Qxd5 {[%clk 0:00:09]} 40. cxd5 {[%clk 0:00:06]}  Re1+ {[%clk 0:00:09]} 41. Kh2 {[%clk 0:00:07]}  gxf4 {[%clk 0:00:10]} 42. d6 {[%clk 0:00:07]}  Rd8 {[%clk 0:00:11]} 43. Rd4 {[%clk 0:00:07]}  Re6 {[%clk 0:00:11]} 44. Rxf4 {[%clk 0:00:08]}  Rdxd6 {[%clk 0:00:11]} 45. Rg4+ {[%clk 0:00:08]}  Rg6 {[%clk 0:00:12]} 46. Ra4 {[%clk 0:00:09]}  Ra6 {[%clk 0:00:13]} 47. Rc4 {[%clk 0:00:10]}  Rxa2 {[%clk 0:00:12]} 48. f4 {[%clk 0:00:10]}  Rgxg2+ {[%clk 0:00:12]} 49. Kh3 {[%clk 0:00:11]}  Rgc2 {[%clk 0:00:11]} 50. Rd4 {[%clk 0:00:11]}  a5 {[%clk 0:00:11]} 51. Rd7 {[%clk 0:00:11]}  a4 {[%clk 0:00:12]} 52. Kg4 {[%clk 0:00:11]}  a3 {[%clk 0:00:12]} 53. Kf5 {[%clk 0:00:12]}  Rc6 {[%clk 0:00:11]} 54. Ra7 {[%clk 0:00:12]}  Ra1 {[%clk 0:00:11]} 55. Rb7 {[%clk 0:00:11]}  Ra6 {[%clk 0:00:11]} 0-1


[Site "https://www.chess.com"]

[Event "Titled Tuesday Blitz December 20 Early 2022"]
[White "Vsevolod_Ovchinnikov"]
[Black "bennyficial"]
[WhiteElo "2557"]
[BlackElo "2145"]
[Result "1-0"]
[Round "01"]
[TimeControl "180+2"]
[Date "2022.12.20"]
[WhiteClock "0:00:05"]
[BlackClock "0:00:05"]

1. d4 {[%clk 0:02:57]}  Nf6 {[%clk 0:02:59]} 2. c4 {[%clk 0:02:58]}  e6 {[%clk 0:02:59]} 3. g3 {[%clk 0:02:56]}  d5 {[%clk 0:02:59]} 4. Nf3 {[%clk 0:02:56]}  dxc4 {[%clk 0:02:58]} 5. Bg2 {[%clk 0:02:56]}  c5 {[%clk 0:02:57]} 6. O-O {[%clk 0:02:56]}  Nc6 {[%clk 0:02:55]} 7. Qa4 {[%clk 0:02:55]}  Bd7 {[%clk 0:02:53]} 8. Qxc4 {[%clk 0:02:55]}  b5 {[%clk 0:02:53]} 9. Qd3 {[%clk 0:02:56]}  c4 {[%clk 0:02:53]} 10. Qd1 {[%clk 0:02:56]}  Rc8 {[%clk 0:02:49]} 11. Bg5 {[%clk 0:02:36]}  Be7 {[%clk 0:02:47]} 12. Nc3 {[%clk 0:02:34]}  b4 {[%clk 0:02:45]} 13. Bxf6 {[%clk 0:02:31]}  gxf6 {[%clk 0:02:44]} 14. Ne4 {[%clk 0:02:32]}  f5 {[%clk 0:02:41]} 15. Ned2 {[%clk 0:02:26]}  c3 {[%clk 0:02:18]} 16. bxc3 {[%clk 0:02:27]}  bxc3 {[%clk 0:02:18]} 17. Nb3 {[%clk 0:02:27]}  Nb4 {[%clk 0:01:42]} 18. Ne1 {[%clk 0:01:23]}  c2 {[%clk 0:01:21]} 19. Qd2 {[%clk 0:01:19]}  O-O {[%clk 0:00:46]} 20. a3 {[%clk 0:00:22]}  Ba4 {[%clk 0:00:45]} 21. Nc1 {[%clk 0:00:12]}  Nd5 {[%clk 0:00:40]} 22. e4 {[%clk 0:00:06]}  fxe4 {[%clk 0:00:34]} 23. Bxe4 {[%clk 0:00:07]}  Bg5 {[%clk 0:00:29]} 24. f4 {[%clk 0:00:06]}  Bf6 {[%clk 0:00:29]} 25. Nf3 {[%clk 0:00:06]}  Qb6 {[%clk 0:00:21]} 26. Re1 {[%clk 0:00:05]}  Rc4 {[%clk 0:00:20]} 27. Ne2 {[%clk 0:00:05]}  Rfc8 {[%clk 0:00:19]} 28. Rec1 {[%clk 0:00:05]}  Qb2 {[%clk 0:00:16]} 29. Bd3 {[%clk 0:00:05]}  R4c6 {[%clk 0:00:13]} 30. Ne5 {[%clk 0:00:04]}  Bxe5 {[%clk 0:00:12]} 31. fxe5 {[%clk 0:00:05]}  R8c7 {[%clk 0:00:07]} 32. Qg5+ {[%clk 0:00:05]}  Kh8 {[%clk 0:00:05]} 33. Qd8+ {[%clk 0:00:05]}  Kg7 {[%clk 0:00:05]} 34. Qg5+ {[%clk 0:00:05]}  Kh8 {[%clk 0:00:06]} 35. Qh6 {[%clk 0:00:05]}  Rc8 {[%clk 0:00:05]} 36. Qxh7# {[%clk 0:00:05]} 1-0


[Site "https://www.chess.com"]

[Event "Titled Tuesday Blitz December 20 Early 2022"]
[White "Willychess95"]
[Black "Barbis, Athanasios"]
[BlackFideId "4215800"]
[WhiteElo "2661"]
[BlackElo "1953"]
[Result "1-0"]
[Round "01"]
[TimeControl "180+2"]
[Date "2022.12.20"]
[WhiteClock "0:01:51"]
[BlackClock "0:00:22"]

1. e4 {[%clk 0:02:59]}  c5 {[%clk 0:02:58]} 2. Nf3 {[%clk 0:02:59]}  Nc6 {[%clk 0:02:59]} 3. Bb5 {[%clk 0:02:56]}  g6 {[%clk 0:02:58]} 4. Bxc6 {[%clk 0:02:56]}  dxc6 {[%clk 0:02:58]} 5. d3 {[%clk 0:02:56]}  Bg7 {[%clk 0:02:59]} 6. Nc3 {[%clk 0:02:55]}  Nf6 {[%clk 0:02:50]} 7. h3 {[%clk 0:02:54]}  Nd7 {[%clk 0:02:51]} 8. O-O {[%clk 0:02:54]}  e5 {[%clk 0:02:49]} 9. Be3 {[%clk 0:02:54]}  b6 {[%clk 0:02:44]} 10. Qd2 {[%clk 0:02:54]}  h6 {[%clk 0:02:20]} 11. Nh2 {[%clk 0:02:53]}  Nf8 {[%clk 0:02:20]} 12. a4 {[%clk 0:02:45]}  Ne6 {[%clk 0:02:15]} 13. a5 {[%clk 0:02:44]}  b5 {[%clk 0:02:01]} 14. Ne2 {[%clk 0:02:44]}  Nd4 {[%clk 0:01:57]} 15. f4 {[%clk 0:02:37]}  exf4 {[%clk 0:01:44]} 16. Rxf4 {[%clk 0:02:30]}  O-O {[%clk 0:01:39]} 17. Raf1 {[%clk 0:02:26]}  Nxe2+ {[%clk 0:01:12]} 18. Qxe2 {[%clk 0:02:26]}  Bxb2 {[%clk 0:01:13]} 19. Kh1 {[%clk 0:02:08]}  Bg7 {[%clk 0:01:06]} 20. Bxc5 {[%clk 0:02:06]}  Bd7 {[%clk 0:00:45]} 21. Bxf8 {[%clk 0:02:04]}  Qxf8 {[%clk 0:00:45]} 22. Rxf7 {[%clk 0:02:03]}  Qxf7 {[%clk 0:00:46]} 23. Rxf7 {[%clk 0:02:03]}  Kxf7 {[%clk 0:00:47]} 24. Nf3 {[%clk 0:01:58]}  Rf8 {[%clk 0:00:42]} 25. Qf2 {[%clk 0:01:57]}  Kg8 {[%clk 0:00:39]} 26. Qxa7 {[%clk 0:01:56]}  Bxh3 {[%clk 0:00:34]} 27. gxh3 {[%clk 0:01:54]}  Rxf3 {[%clk 0:00:34]} 28. Qa8+ {[%clk 0:01:53]}  Kh7 {[%clk 0:00:25]} 29. Qb7 {[%clk 0:01:52]}  Rxh3+ {[%clk 0:00:24]} 30. Kg2 {[%clk 0:01:51]}  Rh5 {[%clk 0:00:23]} 31. a6 {[%clk 0:01:51]}  Rg5+ {[%clk 0:00:22]} 32. Kf3 {[%clk 0:01:51]} 1-0


[Site "https://www.chess.com"]

[Event "Titled Tuesday Blitz December 20 Early 2022"]
[White "Witek, Tomasz"]
[Black "Tomescu, Vlad"]
[WhiteFideId "1130056"]
[BlackFideId "1201026"]
[WhiteElo "2000"]
[BlackElo "2323"]
[Result "0-1"]
[Round "01"]
[TimeControl "180+2"]
[Date "2022.12.20"]
[WhiteClock "0:00:05"]
[BlackClock "0:00:08"]

1. d4 {[%clk 0:02:55]}  d5 {[%clk 0:02:59]} 2. Nf3 {[%clk 0:02:54]}  Nf6 {[%clk 0:02:59]} 3. c4 {[%clk 0:02:51]}  dxc4 {[%clk 0:02:59]} 4. e3 {[%clk 0:02:47]}  e6 {[%clk 0:02:59]} 5. Bxc4 {[%clk 0:02:47]}  c5 {[%clk 0:03:00]} 6. O-O {[%clk 0:02:44]}  a6 {[%clk 0:03:00]} 7. dxc5 {[%clk 0:02:43]}  Bxc5 {[%clk 0:02:59]} 8. Qxd8+ {[%clk 0:02:39]}  Kxd8 {[%clk 0:03:00]} 9. Ne5 {[%clk 0:02:38]}  Ke7 {[%clk 0:02:55]} 10. Be2 {[%clk 0:02:32]}  Nbd7 {[%clk 0:02:47]} 11. Nd3 {[%clk 0:02:31]}  Bd6 {[%clk 0:02:45]} 12. Nd2 {[%clk 0:02:30]}  b5 {[%clk 0:02:44]} 13. Bf3 {[%clk 0:02:23]}  Rb8 {[%clk 0:02:41]} 14. a4 {[%clk 0:02:19]}  Bb7 {[%clk 0:02:26]} 15. axb5 {[%clk 0:02:08]}  Bxf3 {[%clk 0:02:25]} 16. Nxf3 {[%clk 0:02:06]}  axb5 {[%clk 0:02:26]} 17. Nd4 {[%clk 0:01:56]}  Rhc8 {[%clk 0:02:07]} 18. Ra7 {[%clk 0:01:53]}  Ke8 {[%clk 0:01:38]} 19. Bd2 {[%clk 0:01:42]}  Ne4 {[%clk 0:01:30]} 20. Bb4 {[%clk 0:01:32]}  Bxb4 {[%clk 0:01:08]} 21. Nxb4 {[%clk 0:01:32]}  e5 {[%clk 0:00:55]} 22. Ndc6 {[%clk 0:01:10]}  Rb6 {[%clk 0:00:51]} 23. Rd1 {[%clk 0:01:08]}  Nef6 {[%clk 0:00:30]} 24. Rd6 {[%clk 0:00:51]}  Nb8 {[%clk 0:00:29]} 25. Ra8 {[%clk 0:00:29]}  Nfd7 {[%clk 0:00:18]} 26. h3 {[%clk 0:00:18]}  f6 {[%clk 0:00:18]} 27. g4 {[%clk 0:00:17]}  h6 {[%clk 0:00:12]} 28. f4 {[%clk 0:00:17]}  Rc7 {[%clk 0:00:08]} 29. f5 {[%clk 0:00:13]}  Kf7 {[%clk 0:00:06]} 30. Nxb8 {[%clk 0:00:03]}  Rxd6 {[%clk 0:00:05]} 31. N8c6 {[%clk 0:00:04]}  Rdxc6 {[%clk 0:00:04]} 32. Nxc6 {[%clk 0:00:04]}  Rxc6 {[%clk 0:00:05]} 33. Ra7 {[%clk 0:00:04]}  Ke7 {[%clk 0:00:05]} 34. Kf2 {[%clk 0:00:04]}  Rc2+ {[%clk 0:00:05]} 35. Kf3 {[%clk 0:00:05]}  Rxb2 {[%clk 0:00:06]} 36. Ke4 {[%clk 0:00:05]}  Rb4+ {[%clk 0:00:06]} 37. Kd5 {[%clk 0:00:06]}  Rb2 {[%clk 0:00:06]} 38. Kc6 {[%clk 0:00:06]}  Rc2+ {[%clk 0:00:07]} 39. Kxb5 {[%clk 0:00:07]}  Rc3 {[%clk 0:00:07]} 40. e4 {[%clk 0:00:07]}  Re3 {[%clk 0:00:07]} 41. Kc6 {[%clk 0:00:07]}  Rc3+ {[%clk 0:00:08]} 42. Kb5 {[%clk 0:00:06]}  Rxh3 {[%clk 0:00:08]} 43. Ra8 {[%clk 0:00:05]}  Rb3+ {[%clk 0:00:08]} 44. Kc6 {[%clk 0:00:05]}  Rc3+ {[%clk 0:00:08]} 45. Kb5 {[%clk 0:00:05]}  Re3 {[%clk 0:00:08]} 46. Rg8 {[%clk 0:00:05]}  Kf7 {[%clk 0:00:08]} 47. Rd8 {[%clk 0:00:05]}  Nf8 {[%clk 0:00:08]} 0-1


[Site "https://www.chess.com"]